bitfinex/quotes_ETHUSD_20250324
["timestamp","ask_amount","ask_price","bid_price","bid_amount"]
[1742788913335,0.7627,2020.1,2019.9,4.9506]
[1742788913644,0.7627,2020.1,2019.7,5.058]
[1742788913945,0.7627,2020.1,2019.8,4.95096]
[1742788914111,0.7627,2020.1,2019.9,1.496015]
[1742788914718,0.7627,2020.1,2019.7,5.058]
[1742788914925,0.7627,2020.1,2019.7,10.00922]
[1742788915126,0.7627,2020.1,2019.8,4.95097]
[1742788915841,0.8042,2020.3,2019.9,4.9507]
[1742788916043,0.8042,2020.3,2019.9,9.90129]
[1742788916214,0.8042,2020.3,2020.0,0.990129]
[1742788916524,0.8042,2020.3,2019.9,4.95059]
[1742788916723,0.8042,2020.3,2019.7,10.00908]
[1742788917036,0.8042,2020.3,2019.8,4.9508]
[1742788917218,0.8042,2020.3,2019.8,4.95097]
[1742788917934,0.8042,2020.3,2019.8,9.90184]
[1742788918123,0.8042,2020.3,2019.9,1.495984]
[1742788919646,3.0,2020.8,2020.2,4.94988]
[1742788919853,5.8432,2020.9,2020.3,4.94974]
[1742788920161,3.0,2020.8,2020.2,4.94988]
[1742788920632,3.0,2020.8,2020.2,9.94926549]
[1742788920819,3.0,2020.8,2020.3,4.94972]
[1742788921251,5.8432,2020.9,2020.4,4.94949]
[1742788921549,0.8042,2020.9,2020.3,4.94972]
[1742788921752,0.8042,2020.7,2020.0,4.95027]
[1742788921947,3.0,2020.6,2020.0,13.5006854]
[1742788922246,0.8042,2020.5,2020.0,13.5006954]
[1742788922454,0.8042,2020.5,2020.2,4.94998]
[1742788922760,0.8042,2020.5,2020.1,4.95022]
[1742788923048,0.8042,2020.5,2020.1,4.95012]
[1742788923553,0.8042,2020.5,2020.0,37.35329]
[1742788923927,0.8042,2020.5,2020.1,4.95013]
[1742788924126,0.8042,2020.5,2020.0,37.35329]
[1742788924327,0.8042,2020.5,2020.0,27.371]
[1742788924639,3.0,2020.4,2020.0,27.371]
[1742788925821,7.94962,2020.4,2020.0,27.371]
[1742788926020,0.8042,2020.5,2020.0,27.371]
[1742788926021,8.75352,2020.5,2020.0,27.371]
[1742788926522,3.8042,2020.5,2020.1,4.95002]
[1742788926723,3.8042,2020.5,2020.1,3.727162]
[1742788927132,3.8042,2020.5,2020.0,32.32144]
[1742788928752,3.8042,2020.5,2020.0,27.371]
[1742788928953,0.8042,2020.5,2020.0,32.32137]
[1742788929160,0.8042,2020.5,2020.0,27.371]
[1742788929353,3.0,2020.4,2020.0,27.371]
[1742788930627,0.7765,2020.3,2020.0,27.371]
[1742788931255,0.7765,2020.3,2020.0,32.32129]
[1742788931462,0.7765,2020.5,2020.0,32.32129]
[1742788932163,0.7765,2020.5,2020.0,27.371]
[1742788932367,3.0,2020.4,2020.0,27.371]
[1742788933769,3.0,2020.4,2020.1,4.9502]
[1742788933953,0.7765,2020.5,2020.1,4.9502]
[1742788934335,0.7765,2020.5,2020.0,35.05845]
[1742788934531,0.7765,2020.5,2020.0,30.1081]
[1742788934734,3.0,2020.4,2020.0,27.371]
[1742788934932,3.7765,2020.5,2020.0,27.371]
[1742788935171,3.7765,2020.5,2020.0,32.32142]
[1742788935873,3.7765,2020.5,2020.0,27.371]
[1742788936044,7.94945,2020.5,2020.0,27.371]
[1742788936244,0.7765,2020.4,2020.0,27.371]
[1742788937253,10.32071621,2020.4,2020.0,27.371]
[1742788937454,3.0,2020.2,2020.0,27.371]
[1742788937685,3.7765,2020.4,2020.0,27.371]
[1742788937873,3.7765,2020.4,2019.9,4.95072]
[1742788938253,0.7765,2020.3,2019.8,4.95086]
[1742788938574,0.7765,2020.3,2019.8,14.211598]
[1742788938775,0.7765,2020.3,2019.8,9.260738]
[1742788939072,0.7765,2020.3,2019.9,4.95073]
[1742788939660,0.7765,2020.3,2019.8,9.260738]
[1742788939872,0.7765,2020.3,2019.9,4.95071]
[1742788940200,0.7765,2020.3,2019.8,14.211528]
[1742788940348,0.7765,2020.3,2019.9,9.6100628]
[1742788941078,1.00960293,2021.6,2020.4,4.94951]
[1742788941254,1.00960293,2021.6,2021.5,4.94682]
[1742788941465,1.00960293,2021.6,2021.5,37.30982]
[1742788941767,1.00960293,2021.6,2021.2,32.31945]
[1742788941964,1.82750293,2021.6,2021.3,4.94726]
[1742788942352,1.82750293,2021.6,2021.2,27.372]
[1742788942578,1.82750293,2021.6,2021.3,1.496904]
[1742788942774,0.8179,2021.6,2021.2,37.26682]
[1742788942977,0.8179,2021.6,2021.2,32.31938]
[1742788943167,0.8179,2021.6,2021.3,4.9472]
[1742788943586,0.8179,2021.6,2021.3,0.45717069]
[1742788944087,0.8179,2021.6,2021.3,27.82317069]
[1742788944452,0.8179,2021.6,2021.1,9.89541]
[1742788944659,0.09645818,2021.5,2021.2,27.366]
[1742788944871,3.09645818,2021.5,2021.2,27.366]
[1742788945874,3.09645818,2021.5,2021.2,32.31345]
[1742788946378,3.09645818,2021.5,2021.2,27.366]
[1742788947562,3.09645818,2021.5,2021.0,4.94798]
[1742788947761,3.09645818,2021.5,2021.0,32.31098]
[1742788948903,3.09645818,2021.5,2021.0,27.363]
[1742788949263,3.09645818,2021.5,2021.0,27.361]
[1742788949894,0.8179,2021.4,2021.0,27.361]
[1742788950294,0.10106331,2021.3,2021.0,27.361]
[1742788950706,0.8179,2021.4,2021.0,27.361]
[1742788950967,0.8179,2021.1,2020.6,32.30984]
[1742788951160,0.8179,2021.1,2020.6,27.361]
[1742788951161,0.10011085,2021.0,2020.6,27.361]
[1742788952722,0.10011085,2021.0,2020.4,4.94929]
[1742788952723,3.0,2020.9,2020.4,27.36]
[1742788953078,0.09868184,2020.8,2020.4,32.30949]
[1742788953278,0.09868184,2020.8,2020.4,32.04115562]
[1742788954189,0.8179,2020.7,2020.4,32.04115562]
[1742788955363,0.09868184,2020.6,2020.4,32.04115562]
[1742788955992,0.09868184,2020.6,2020.4,27.36]
[1742788956297,5.76669,2020.7,2020.4,27.36]
[1742788956469,5.76669,2020.7,2020.0,11.00104149]
[1742788956470,4.94911,2020.6,2020.1,27.362]
[1742788956670,4.94938,2020.5,2020.1,27.362]
[1742788956890,4.94938,2020.5,2020.1,28.04894831]
[1742788957496,0.8179,2020.7,2020.1,28.04894831]
[1742788958101,0.8179,2020.7,2019.6,0.55]
[1742788958102,0.8015,2020.0,2019.6,0.36646016]
[1742788958272,5.7635,2020.0,2019.6,0.36646016]
[1742788959003,5.7635,2020.0,2019.3,9.90432]
[1742788959399,5.7635,2020.0,2019.3,4.95216]
[1742788959606,5.7635,2020.0,2019.4,1.45076662]
[1742788960003,15.30849621,2020.0,2019.2,4.956]
[1742788960204,0.8015,2019.7,2018.9,10.71544]
[1742788960387,0.8015,2019.7,2018.9,5.75644]
[1742788960388,3.0,2019.6,2018.9,5.75644]
[1742788960775,3.8015,2019.7,2018.9,0.8034]
[1742788960981,3.0,2019.4,2019.1,1.00512077]
[1742788961191,3.0,2019.4,2019.0,0.64938103]
[1742788961387,0.8015,2019.3,2018.7,27.364]
[1742788961585,3.0,2019.2,2018.8,1.00561649]
[1742788961775,3.8015,2019.3,2018.8,1.00561649]
[1742788962200,8.75373,2019.3,2018.8,1.00561649]
[1742788962380,7.95253,2019.2,2018.7,27.364]
[1742788962581,3.0,2019.1,2018.7,30.1004]
[1742788962789,0.8015,2019.0,2018.7,28.34007161]
[1742788963119,0.8015,2019.0,2018.7,27.364]
[1742788963494,5.75456,2019.0,2018.7,27.364]
[1742788963904,5.75446,2019.0,2018.7,27.364]
[1742788964697,7.95343,2018.8,2018.7,27.364]
[1742788968200,3.0,2018.8,2018.7,27.364]
[1742788968800,7.95343,2018.8,2018.7,27.364]
[1742788970018,12.54793621,2018.8,2018.7,27.364]
[1742788973901,4.59450621,2020.0,2018.7,32.31754]
[1742788973902,10.35335621,2019.3,2018.7,32.31754]
[1742788974232,3.0,2019.2,2018.8,8.185054]
[1742788974435,4.59450621,2019.1,2018.8,3.231754]
[1742788974601,3.0,2019.2,2018.8,3.231754]
[1742788974924,7.95257,2019.2,2018.7,28.1702]
[1742788975124,5.40110621,2018.9,2018.7,27.364]
[1742788975505,3.0,2019.0,2018.7,27.364]
[1742788976428,3.8066,2019.2,2018.8,4.95339]
[1742788976734,3.8066,2019.2,2018.8,3.231739]
[1742788976932,3.0,2019.0,2018.8,3.231739]
[1742788977131,3.0,2019.0,2018.7,27.364]
[1742788978316,7.95306,2019.0,2018.7,27.364]
[1742788979225,4.59450621,2018.9,2018.4,38.63543]
[1742788979597,4.59450621,2018.9,2018.4,43.58972]
[1742788979934,3.8066,2018.8,2018.4,27.388]
[1742788980427,3.8066,2018.8,2018.4,34.43812662]
[1742788980839,3.0,2018.8,2018.6,4.95391]
[1742788981133,4.59450621,2018.9,2018.4,29.48376662]
[1742788981134,5.40110621,2019.0,2018.4,34.43806662]
[1742788981441,4.59450621,2018.8,2018.4,32.3423]
[1742788981817,10.35414621,2019.0,2018.4,32.3423]
[1742788982744,3.0,2019.2,2018.8,4.95334]
[1742788983109,3.0,2019.2,2018.8,4.95327]
[1742788983403,3.0,2019.2,2018.8,6.022717]
[1742788983618,3.0,2019.2,2018.8,6.022697]
[1742788983813,4.59450621,2019.4,2019.0,4.95285]
[1742788984019,4.59450621,2019.4,2019.0,10.71182]
[1742788984238,0.8066,2019.6,2019.2,4.95234]
[1742788984454,0.8066,2019.6,2019.1,4.9526]
[1742788985110,0.8066,2019.6,2019.1,0.59952165]
[1742788985340,0.8066,2019.8,2019.4,4.9519]
[1742788985640,3.8066,2019.8,2019.4,4.9519]
[1742788985831,9.54490621,2020.1,2019.5,4.9517]
[1742788986003,5.78328,2020.0,2019.4,5.74406]
[1742788986209,9.54533621,2019.9,2019.4,0.7922]
[1742788986419,4.59450621,2019.9,2019.4,5.74416]
[1742788986615,7.59450621,2019.9,2019.4,5.74416]
[1742788987951,7.59450621,2019.9,2019.4,10.69593]
[1742788988249,7.59450621,2019.9,2019.4,5.74397]
[1742788988755,7.59450621,2019.9,2019.4,10.69574]
[1742788989051,7.59450621,2019.9,2019.4,5.74397]
[1742788992740,4.59450621,2019.5,2019.2,27.389]
[1742788992947,3.0,2019.4,2019.2,27.389]
[1742788995253,7.95205,2019.4,2019.2,27.389]
[1742788995435,3.0,2019.4,2019.2,27.389]
[1742788996830,7.15294283,2019.3,2019.2,27.389]
[1742789000734,7.95255,2019.2,2018.6,38.01598]
[1742789000954,4.15294283,2019.1,2018.6,38.01598]
[1742789001260,3.0,2019.0,2018.7,4.95363]
[1742789001667,4.15294283,2018.9,2018.7,0.45971645]
[1742789001865,0.8045,2018.8,2018.7,0.45971645]
[1742789002564,0.8045,2018.8,2018.5,4.97426575]
[1742789002756,0.8045,2018.8,2018.5,5.96713333]
[1742789003132,4.15294283,2018.9,2018.7,4.95364]
[1742789003875,4.15294283,2018.9,2018.6,4.95389]
[1742789004071,4.15294283,2018.9,2018.6,9.90765]
[1742789004242,4.15294283,2018.9,2018.6,11.16051585]
[1742789004438,4.15294283,2018.9,2018.7,4.95366]
[1742789004771,4.15294283,2018.9,2018.6,6.20662585]
[1742789004971,4.15294283,2018.9,2018.6,11.16045585]
[1742789005173,4.15294283,2018.9,2018.7,4.95367]
[1742789005474,0.8045,2019.2,2018.8,4.95343]
[1742789005651,0.8045,2019.2,2018.9,4.95307]
[1742789005851,4.15294283,2019.3,2019.0,4.9528]
[1742789006239,4.15294283,2019.3,2019.0,4.95277]
[1742789006444,4.15294283,2019.3,2019.1,4.95258]
[1742789006844,4.15294283,2019.3,2019.0,4.95277]
[1742789007061,4.15294283,2019.3,2019.0,1.068615]
[1742789007241,4.15294283,2019.3,2018.9,5.73338]
[1742789007669,3.0,2019.0,2018.8,5.41308009]
[1742789007876,3.0,2019.0,2018.8,5.41289009]
[1742789008075,3.0,2019.0,2018.9,4.95319]
[1742789008274,3.0,2019.0,2018.9,8.80661801]
[1742789008445,3.0,2019.2,2019.0,4.95293]
[1742789009480,4.15294283,2019.1,2018.7,33.12164]
[1742789009778,4.15294283,2019.1,2018.8,5.5033]
[1742789009967,4.15294283,2019.1,2018.8,12.22625133]
[1742789010365,3.0,2019.2,2018.9,9.90616]
[1742789010567,0.8045,2019.4,2019.2,4.95232]
[1742789010763,3.0,2019.5,2019.2,4.95232]
[1742789011770,3.0,2019.5,2019.1,5.73289]
[1742789012173,3.0,2019.3,2019.1,5.73289]
[1742789012356,3.0,2019.3,2019.1,5.73279]
[1742789012682,3.0,2019.3,2019.1,5.73271]
[1742789013149,3.0,2019.3,2019.2,4.95245]
[1742789013353,4.95744283,2019.6,2019.2,4.95222]
[1742789013883,4.15294283,2019.6,2019.2,4.95222]
[1742789016356,4.15294283,2019.4,2019.1,27.387]
[1742789016562,4.15294283,2019.2,2019.1,27.387]
[1742789018088,4.93794283,2019.4,2019.1,27.387]
[1742789018270,0.785,2019.4,2019.1,27.387]
[1742789018478,4.15294283,2019.2,2019.1,27.387]
[1742789021186,4.15294283,2019.2,2018.9,4.95301]
[1742789022795,4.15294283,2019.2,2018.9,9.90606]
[1742789023003,4.15294283,2019.2,2019.0,4.95292]
[1742789023298,4.15294283,2019.2,2018.9,4.95301]
[1742789023667,4.15294283,2019.2,2019.0,4.95294]
[1742789023869,4.15294283,2019.2,2018.9,9.90609]
[1742789024069,4.15294283,2019.2,2018.9,4.95301]
[1742789028605,4.15294283,2019.2,2018.8,4.95342]
[1742789028827,3.0,2018.9,2018.7,27.386]
[1742789029011,2.99287983,2018.9,2018.7,27.386]
[1742789029212,4.15294283,2018.8,2018.7,27.386]
[1742789029974,4.15294283,2019.0,2018.7,27.386]
[1742789030179,4.15294283,2019.0,2018.9,4.95319]
[1742789031018,7.15294283,2019.0,2018.9,4.95319]
[1742789031725,7.15294283,2019.0,2018.8,5.71475]
[1742789032310,3.0,2019.2,2019.1,4.9527]
[1742789032489,3.0,2019.2,2019.0,4.95285]
[1742789034609,3.0,2019.2,2019.1,4.9527]
[1742789035382,0.7634,2019.7,2019.3,4.95197]
[1742789035582,0.7634,2019.7,2019.3,4.95211]
[1742789035916,4.91634283,2019.7,2019.3,5.997565]
[1742789036210,3.0,2019.6,2019.3,5.997565]
[1742789036706,4.91634283,2019.7,2019.3,5.997565]
[1742789037013,3.0,2019.6,2019.3,5.997565]
[1742789037924,0.7634,2020.3,2019.8,4.95084]
[1742789038126,3.0,2019.7,2019.3,4.839]
[1742789038318,4.15294283,2019.6,2019.3,4.839]
[1742789038520,4.15294283,2019.6,2019.3,9.7912]
[1742789040200,0.7634,2019.5,2019.2,0.36855531]
[1742789040425,0.7634,2019.5,2019.1,4.95263]
[1742789040631,0.7634,2019.5,2019.2,4.95243]
[1742789040831,7.15294283,2019.6,2019.5,4.95172]
[1742789040832,3.0,2019.6,2019.5,4.95172]
[1742789041129,3.0,2020.0,2019.6,4.95123]
[1742789041296,4.91634283,2020.1,2019.8,4.95093]
[1742789041497,4.15294283,2020.1,2019.8,4.95093]
[1742789041722,4.15294283,2020.1,2019.8,9.90179]
[1742789041929,3.0,2020.0,2019.9,4.95074]
[1742789042105,4.91634283,2020.3,2019.9,4.95074]
[1742789042311,4.94938,2020.5,2019.9,1.06841]
[1742789042312,4.91634283,2020.5,2019.9,1.06841]
[1742789042528,4.91634283,2020.7,2020.3,4.94964]
[1742789042836,4.91634283,2020.7,2020.4,4.94929]
[1742789043016,4.91634283,2020.7,2020.3,5.939664]
[1742789043332,3.0,2020.9,2020.4,4.94951]
[1742789043647,4.91634283,2020.9,2020.6,4.94881]
[1742789043852,4.89612708,2020.9,2020.5,4.94922]
[1742789044319,4.15294283,2021.0,2020.5,4.94926]
[1742789044516,4.15294283,2021.0,2020.6,0.99435553]
[1742789044713,4.15294283,2021.0,2020.7,4.9486]
[1742789045816,4.15294283,2020.8,2020.6,4.94898]
[1742789046035,4.15294283,2020.8,2020.4,4.99429528]
[1742789046248,4.15294283,2020.5,2020.3,27.385]
[1742789046535,3.0,2020.4,2020.3,27.385]
[1742789047224,4.9499,2020.3,2019.8,4.85]
[1742789047413,4.15294283,2020.0,2019.8,4.85]
[1742789047734,4.15294283,2020.0,2019.7,28.181]
[1742789047955,4.15294283,2020.0,2019.7,27.38]
[1742789047956,4.15294283,2019.8,2019.7,27.38]
[1742789049249,7.15294283,2020.0,2019.8,4.95091]
[1742789049543,3.0,2020.1,2019.9,0.801]
[1742789050037,4.15294283,2020.0,2019.7,31.188399]
[1742789050549,4.15294283,2020.0,2019.7,27.38]
[1742789050725,7.9501,2020.2,2019.7,27.38]
[1742789050919,4.15294283,2020.1,2019.7,27.38]
[1742789051248,4.15294283,2019.9,2019.7,27.38]
[1742789052019,9.10372283,2019.9,2019.4,0.801]
[1742789052312,4.15294283,2019.5,2019.4,27.376]
[1742789052713,4.15294283,2019.7,2019.4,32.32784]
[1742789053024,10.61434,2020.0,2019.4,32.32784]
[1742789053025,4.15294283,2020.0,2019.6,5.75246]
[1742789053428,4.15294283,2020.0,2019.7,4.95099]
[1742789054131,4.15294283,2020.0,2019.7,9.90201]
[1742789054338,4.15294283,2020.0,2019.6,10.70382]
[1742789054522,4.15294283,2020.0,2019.6,5.75235]
[1742789054719,4.15294283,2020.0,2019.6,9.9817052]
[1742789054931,4.15294283,2019.8,2019.6,9.9817052]
[1742789055953,4.15294283,2019.8,2019.4,28.177]
[1742789056122,4.15294283,2019.8,2019.5,4.95167]
[1742789056323,4.15294283,2019.8,2019.4,37.97874]
[1742789056859,4.15294283,2019.8,2019.5,4.95167]
[1742789057067,4.15294283,2020.0,2019.4,33.027]
[1742789057261,7.96174283,2020.2,2019.9,4.95064]
[1742789057524,7.15294283,2020.2,2020.0,4.95048]
[1742789057969,7.15294283,2020.2,2019.9,4.95064]
[1742789058323,7.15294283,2020.2,2019.8,0.801]
[1742789058324,4.15294283,2020.0,2019.8,0.801]
[1742789058523,4.15294283,2020.0,2019.7,9.90206]
[1742789058722,7.15294283,2020.2,2019.8,4.95094]
[1742789058959,7.15294283,2020.2,2019.9,4.95059]
[1742789059843,7.15294283,2020.2,2020.0,4.95047]
[1742789060360,7.15294283,2020.2,2020.0,4.95045]
[1742789060557,7.15294283,2020.2,2019.9,5.75169]
[1742789061252,7.15294283,2020.2,2019.9,5.75159]
[1742789061425,3.0,2020.2,2019.9,6.4723066]
[1742789061626,3.0,2020.2,2020.0,4.95038]
[1742789061827,4.96174283,2020.4,2020.1,4.95014]
[1742789062037,4.94696,2021.5,2020.2,4.9499]
[1742789062038,4.97944283,2020.6,2020.2,4.9499]
[1742789062241,4.97944283,2020.6,2020.3,4.94975]
[1742789062427,3.0,2020.5,2020.3,4.94975]
[1742789062638,4.15294283,2020.6,2020.3,4.94964]
[1742789062844,4.15294283,2020.6,2020.4,4.94931]
[1742789063046,4.15294283,2021.0,2020.4,4.94951]
[1742789063245,4.15294283,2021.0,2020.7,4.94863]
[1742789063446,4.15294283,2021.0,2020.6,4.94898]
[1742789063834,4.15294283,2021.0,2020.7,4.94877]
[1742789064241,4.15294283,2021.0,2020.6,4.94891]
[1742789064438,4.15294283,2021.0,2020.5,4.94925]
[1742789064644,4.15294283,2020.8,2020.5,4.9492]
[1742789065826,7.15294283,2021.0,2020.6,4.94898]
[1742789066460,12.10107283,2021.0,2020.5,6.1166724]
[1742789067068,4.15294283,2020.8,2020.5,4.94922]
[1742789067859,4.15294283,2020.8,2020.4,4.94946]
[1742789068634,4.15294283,2020.6,2020.1,0.7859]
[1742789068942,4.15294283,2020.6,2020.1,5.7361]
[1742789069139,4.15294283,2020.4,2020.0,9.79926]
[1742789069351,4.15294283,2020.4,2020.1,4.95011]
[1742789069663,4.15294283,2020.2,2020.0,0.4589985]
[1742789069869,9.10295283,2020.2,2020.0,0.4589985]
[1742789070430,14.05318283,2020.2,2020.0,1.44331525]
[1742789070768,9.10298283,2020.2,2020.0,0.98431675]
[1742789070962,9.10298283,2020.2,2019.9,27.377]
[1742789071145,4.15294283,2020.0,2019.9,27.377]
[1742789071351,7.15294283,2020.0,2019.9,27.377]
[1742789071661,8.77737,2019.9,2019.4,33.10862]
[1742789071838,4.15294283,2019.6,2019.4,28.1569]
[1742789072253,4.15294283,2019.6,2019.4,27.371]
[1742789072465,0.8265,2019.9,2019.4,36.040166]
[1742789072677,4.15294283,2019.8,2019.5,4.95162]
[1742789073035,4.15294283,2020.0,2019.6,4.95147]
[1742789073254,4.15294283,2019.8,2019.4,36.040116]
[1742789073462,4.15294283,2019.6,2019.4,32.0346796]
[1742789073864,0.7511,2019.7,2019.4,32.0346796]
[1742789074068,4.15294283,2019.6,2019.4,27.371]
[1742789074240,4.95076,2019.9,2019.4,27.371]
[1742789074445,9.10370283,2019.9,2019.4,27.371]
[1742789074647,3.32077646,2019.8,2019.4,36.120197]
[1742789075573,4.07187646,2020.0,2019.4,31.168377]
[1742789075760,4.07187646,2020.0,2019.7,4.95122]
[1742789075966,3.32077646,2020.0,2019.7,4.95122]
[1742789076374,6.32077646,2020.2,2019.9,4.9507]
[1742789077041,4.13157646,2020.6,2020.1,4.95013]
[1742789077347,4.13157646,2020.6,2020.0,0.7789]
[1742789077348,8.27030646,2020.4,2020.0,0.7789]
[1742789077548,3.32077646,2020.4,2020.0,5.72939]
[1742789078295,3.32077646,2020.4,2019.9,4.95073]
[1742789078476,3.32077646,2020.4,2019.9,9.90134]
[1742789078673,3.32077646,2020.4,2020.0,4.95029]
[1742789078985,3.32077646,2020.4,2020.1,5.445239]
[1742789079583,0.8108,2020.6,2020.2,4.99929889]
[1742789079767,9.08020646,2020.8,2020.3,4.94973]
[1742789079968,4.94879,2020.7,2020.2,5.7287]
[1742789080165,14.02894646,2020.8,2020.3,5.5721129]
[1742789080372,3.0,2020.7,2020.3,10.5217029]
[1742789080622,9.08020646,2020.8,2020.3,10.5217029]
[1742789080916,9.08020646,2020.8,2020.3,5.5719629]
[1742789081072,4.94865,2020.8,2020.3,10.4270329]
[1742789081411,4.94865,2020.8,2020.4,4.35279229]
[1742789081412,3.32077646,2020.7,2020.4,4.35279229]
[1742789081915,8.26958646,2020.7,2020.3,0.6223729]
[1742789082121,3.32077646,2020.5,2020.2,32.231]
[1742789082414,3.32077646,2020.5,2020.2,27.372]
[1742789083000,8.27005646,2020.5,2020.2,27.372]
[1742789083728,3.32077646,2020.5,2020.2,27.372]
[1742789084214,3.32077646,2020.5,2020.2,28.3563722]
[1742789085601,3.8108,2020.6,2020.2,32.66763642]
[1742789085800,3.32077646,2020.5,2020.2,32.66763642]
[1742789086163,8.27005646,2020.5,2020.2,28.3563722]
[1742789086765,3.32077646,2020.3,2020.2,28.3563722]
[1742789086967,3.32077646,2020.3,2020.2,27.372]
[1742789088013,8.27005646,2020.5,2020.2,27.372]
[1742789088299,3.32077646,2020.5,2020.2,27.372]
[1742789088607,3.8108,2020.6,2020.2,36.14700975]
[1742789088786,3.0,2020.7,2020.3,0.7789]
[1742789088996,4.13157646,2020.8,2020.4,4.94944]
[1742789089202,3.32077646,2020.8,2020.4,4.94944]
[1742789089572,3.32077646,2020.8,2020.4,9.89877]
[1742789089903,3.32077646,2020.8,2020.4,14.189337]
[1742789090209,3.32077646,2020.8,2020.5,4.94924]
[1742789090388,3.32077646,2020.8,2020.4,14.189307]
[1742789091102,3.32077646,2020.8,2020.4,9.239897]
[1742789091805,3.32077646,2020.8,2020.4,14.189257]
[1742789092108,3.32077646,2020.8,2020.4,9.239897]
[1742789092403,7.94835,2020.9,2020.4,9.239897]
[1742789092704,3.32077646,2020.8,2020.5,1.4968537]
[1742789093074,3.32077646,2020.8,2020.4,9.239897]
[1742789094303,3.32077646,2020.6,2020.3,0.7789]
[1742789094504,3.32077646,2020.4,2020.2,27.372]
[1742789096603,9.05540646,2020.6,2020.2,27.372]
[1742789096901,3.0,2020.5,2020.2,32.32198]
[1742789097106,3.0,2020.5,2020.2,36.668307]
[1742789097507,3.32077646,2020.8,2020.4,0.8002]
[1742789097699,4.10627646,2021.0,2020.5,4.94903]
[1742789097878,9.05441646,2021.0,2020.5,4.94903]
[1742789098079,3.32077646,2020.8,2020.5,4.94903]
[1742789098282,3.32077646,2020.8,2020.5,6.018903]
[1742789099010,3.32077646,2020.8,2020.4,5.7497]
[1742789099181,3.32077646,2020.8,2020.4,4.9495]
[1742789099582,3.32077646,2020.8,2020.3,15.53455]
[1742789099583,8.26930646,2020.8,2020.3,15.53455]
[1742789099814,8.26930646,2020.8,2020.3,10.5848]
[1742789100986,3.32077646,2021.0,2020.7,5.74874]
[1742789101209,9.05357646,2021.4,2020.9,9.89639]
[1742789101410,3.32077646,2021.2,2020.9,4.9481]
[1742789101610,3.32077646,2021.2,2020.8,0.574874]
[1742789101936,4.10627646,2021.4,2021.0,4.94803]
[1742789102212,3.32077646,2021.4,2021.1,5.74792]
[1742789102431,4.10627646,2021.2,2020.8,5.523364]
[1742789102582,4.10627646,2021.2,2020.8,9.78349]
[1742789103004,3.32077646,2021.2,2020.8,14.73187]
[1742789103200,3.32077646,2021.2,2021.0,4.94793]
[1742789103404,3.0,2021.3,2021.1,4.94779]
[1742789103719,3.0,2021.3,2021.1,1.789772]
[1742789103914,3.0,2021.3,2021.2,4.94755]
[1742789104312,4.10627646,2021.6,2021.2,4.94755]
[1742789104625,4.10627646,2021.6,2021.1,6.737562]
[1742789104626,3.32077646,2021.6,2021.3,4.94714]
[1742789104912,8.26646646,2022.0,2021.5,0.55]
[1742789105115,8.26646646,2022.0,2021.5,5.4967]
[1742789105684,7.94602,2021.9,2021.4,5.74724]
[1742789105917,8.26688646,2021.8,2021.4,0.8002]
[1742789106096,3.32077646,2021.8,2021.4,5.74716]
[1742789106303,3.32077646,2021.8,2021.5,1.553328]
[1742789106606,3.32077646,2021.8,2021.5,6.500148]
[1742789107119,3.32077646,2021.8,2021.5,6.500038]
[1742789107623,3.32077646,2022.0,2021.9,4.94584]
[1742789107819,3.32077646,2022.9,2022.5,4.94433]
[1742789108221,3.32077646,2022.9,2022.4,9.86838]
[1742789108425,3.32077646,2022.9,2022.5,0.55]
[1742789108612,0.1205595,2023.2,2022.8,0.55]
[1742789108796,3.32077646,2023.1,2022.9,27.36]
[1742789108993,8.26379646,2023.1,2022.9,27.36]
[1742789109188,0.1205595,2023.2,2022.9,30.096]
[1742789109506,3.44133596,2023.2,2023.0,0.7738]
[1742789110019,0.10004486,2023.1,2023.0,0.7738]
[1742789110691,0.10004486,2023.1,2023.0,1.78479096]
[1742789111024,0.10004486,2023.1,2023.0,1.01099096]
[1742789111689,5.04294486,2023.1,2023.0,1.01099096]
[1742789111891,4.9445,2022.5,2022.2,28.1248]
[1742789112087,4.94448,2022.5,2022.2,28.1248]
[1742789112397,4.94486,2022.3,2022.2,28.33513295]
[1742789112617,7.94486,2022.3,2022.2,27.351]
[1742789112918,4.94596,2021.9,2021.7,0.7738]
[1742789113088,4.94657,2021.6,2021.5,27.351]
[1742789113608,0.10703061,2021.6,2021.5,30.6361]
[1742789113923,4.94588,2021.9,2021.5,30.0861]
[1742789114100,3.0,2022.1,2021.5,30.0861]
[1742789114302,0.10687194,2021.8,2021.5,30.0861]
[1742789114505,3.0,2022.2,2021.7,0.7738]
[1742789114506,4.94548,2022.1,2021.7,0.7738]
[1742789114711,7.94515,2022.2,2021.7,0.7738]
[1742789114918,7.94528,2022.2,2021.7,0.7738]
[1742789115115,4.94545,2022.1,2021.7,0.7738]
[1742789116192,4.94604,2021.9,2021.6,4.0998076]
[1742789116392,4.94604,2021.9,2021.6,9.0768076]
[1742789116612,4.94595,2021.9,2021.6,9.0768076]
[1742789116833,3.0,2022.0,2021.5,28.32340863]
[1742789117016,4.94643,2021.7,2021.5,27.351]
[1742789117212,9.89292,2021.7,2021.5,27.351]
[1742789117413,4.94657,2021.6,2021.5,27.351]
[1742789117633,4.94643,2021.7,2021.5,27.351]
[1742789117795,4.94657,2021.6,2021.5,27.351]
[1742789118427,7.94657,2021.6,2021.5,27.351]
[1742789118841,7.93834687,2021.6,2021.5,27.351]
[1742789119131,4.94804,2021.0,2020.9,27.349]
[1742789119533,4.9478,2021.1,2020.8,0.98201682]
[1742789119715,9.8964,2021.0,2020.8,0.98201682]
[1742789120038,4.94829,2020.9,2020.8,2.91068168]